Cogmind - Beta 13 @@@ ROGUE MODE // 2024.06.04 @ 16:55:03 Player: N.W.L Result: Destroyed by L7-WDK(z) with Makeshift Shrapnel Gun Performance ------------- Evolutions (4) 2000 Regions Visited (14) 2800 Robots Destroyed (196) 980 Value Destroyed (5719) 5719 Prototype IDs (47) 940 Alien Tech Used (0) 0 Bonus (2505) 2505 TOTAL SCORE: 14944 Bonus ------- High Alert Combat Kills 626 Follower Combat Kills 521 Entered Garrisons 200 Used RIF Installer 1000 Aligned with FarCom 300 Friendly Fire -142 Cogmind --------- Core Integrity 0/850 Matter 178/300 Energy 302/310 System Corruption 15% Temperature Cool (10) Movement Walking (136) Location -6/Zion Parts ------- > --- POWER (1) -------- Fission Core > --- PROPULSION (6) --- Makeshift Leg Makeshift Leg Makeshift Leg Makeshift Leg Makeshift Leg Armored Leg > --- UTILITY (6) ------ Scrap Engine High-capacity Storage Unit Makeshift Hacking Suite Bomb Factory No. 2 > --- WEAPON (2) ------- Heavy Plasma Cannon Gauss Rifle > --- INVENTORY (20) --- F-cell Engine Makeshift Leg Coolant Injector Large Matter Pod (0) Compact Matter Pod (0) Makeshift Sensor Array Improved Armor Integrity Analyzer Makeshift Hacking Suite Makeshift Hacking Suite Makeshift System Shield Makeshift System Shield Improved System Restoration Module Heavy Proton Cannon YOLO Cannon Gauss Rifle Makeshift Shrapnel Gun Magnetic Acceleration Cannon Datajack CR-A16's Pointy Stick Peak State ------------ > --- POWER ------------ F-cell Engine > --- PROPULSION ------- Makeshift Leg Makeshift Leg Makeshift Leg Makeshift Leg Makeshift Leg Armored Leg > --- UTILITY ---------- Scrap Engine High-capacity Storage Unit Makeshift Hacking Suite Bomb Factory No. 2 > --- WEAPON ----------- Heavy Plasma Cannon Gauss Rifle > --- INVENTORY -------- Fission Core Makeshift Leg Coolant Injector Large Matter Pod Compact Matter Pod Improved Armor Integrity Analyzer Makeshift Hacking Suite Makeshift Hacking Suite Makeshift System Shield Makeshift System Shield Improved System Restoration Module Heavy Proton Cannon YOLO Cannon Gauss Rifle Makeshift Shrapnel Gun Magnetic Acceleration Cannon Datajack CR-A16's Pointy Stick [Rating: 82] Favorites ----------- Power Ion Engine Engine Ion Engine Power Core Neutrino Core Propulsion Armored Treads Treads Armored Treads Leg Aluminum Leg Utility High-capacity Storage Unit Device Armored Scrap Engine Storage High-capacity Storage Unit Processor Armor Integrity Analyzer Hackware Hacking Suite Protection Light Armor Plating Weapon Light Cannon Energy Gun Medium Laser Energy Cannon Heavy Plasma Cannon Ballistic Gun Gauss Rifle Ballistic Cannon Light Cannon Launcher Rocket Launcher Special Weapon Mining Laser Impact Weapon Hammer Slashing Weapon Axe Piercing Weapon CR-A16's Pointy Stick Special Melee Weapon Datajack Build | -11 -10 -10 -10 -9 -8 -8 -8 -8 -6 -6 -6 -6 -6 -6 ------- Run | Yrd Mat Min Exi Min Mat Sto Gar Rec Fac Was Fac Low Low Zio Slots Evolved 8 | . . . . . 4 . . . 4 . . . . . Power . | . . . . . . . . . . . . . . . Propulsion 4 | . . . . . 2 . . . 2 . . . . . Utility 4 | . . . . . 2 . . . 2 . . . . . Weapon . | . . . . . . . . . . . . . . . Parts Attached 231 | 7 14 12 3 9 17 36 28 16 11 9 18 10 8 33 Power 14 | 1 1 1 . . 1 3 1 . . . 1 1 1 3 Engine 12 | 1 1 1 . . 1 3 1 . . . 1 1 . 2 Core 2 | . . . . . . . . . . . . . 1 1 Reactor . | . . . . . . . . . . . . . . . Propulsion 52 | 2 3 5 . . 6 12 5 2 5 . 2 1 1 8 Treads 40 | 2 . 3 . . 6 12 5 2 5 . 2 1 1 1 Leg 12 | . 3 2 . . . . . . . . . . . 7 Wheel . | . . . . . . . . . . . . . . . Hover . | . . . . . . . . . . . . . . . Flight . | . . . . . . . . . . . . . . . Utility 46 | 2 1 1 1 2 5 4 7 3 3 1 5 3 4 4 Device 20 | 1 . . . . 2 . 2 1 2 1 4 1 4 2 Storage 4 | 1 1 . 1 . . . . . . . 1 . . . Processor 2 | . . . . . . 1 . . . . . 1 . . Hackware 3 | . . . . . 1 . . 1 . . . . . 1 Protection 17 | . . 1 . 2 2 3 5 1 1 . . 1 . 1 Artifact . | . . . . . . . . . . . . . . . Weapon 119 | 2 9 5 2 7 5 17 15 11 3 8 10 5 2 18 Energy Gun 2 | 2 . . . . . . . . . . . . . . Energy Cannon 9 | . . . . . . . . . . 2 . 2 1 4 Ballistic Gun 43 | . 4 . . . . 7 9 4 1 4 6 2 . 6 Ballistic Cannon 20 | . 2 3 . 3 2 3 . . . 2 . 1 . 4 Launcher 19 | . . 2 . 3 1 2 5 . 1 . 2 . 1 2 Special Weapon 1 | . 1 . . . . . . . . . . . . . Impact Weapon 4 | . 2 . 1 1 . . . . . . . . . . Slashing Weapon 12 | . . . . . 1 5 1 3 . . 2 . . . Piercing Weapon 1 | . . . . . . . . . . . . . . 1 Special Melee Weapon 8 | . . . 1 . 1 . . 4 1 . . . . 1 Unidentified Prototypes 8 | . . . . . . 5 . . . 1 . . . 2 Corrupted Parts 2 | . . . . . . . . . . . 1 1 . . System Corruption 7 | . . . . . . . . . . . 2 5 . . Parts Lost 40 | . 3 . . 1 . 1 8 2 1 . 6 5 2 11 Power 4 | . 1 . . . . . 1 . . . . 1 . 1 Propulsion 14 | . 1 . . . . . 1 1 1 . 4 3 1 2 Utility 16 | . . . . 1 . 1 4 1 . . 2 1 1 5 Weapon 6 | . 1 . . . . . 2 . . . . . . 3 Highest Loss Streak 7 | . 3 . . 1 . 1 5 2 1 . 2 4 2 7 To Critical Strikes 1 | . . . . . . . . . . . 1 . . . Average Slot Usage (%) 88 | . 85 100 100 99 100 99 98 79 75 92 86 69 63 57 Engine 8 | . 6 14 14 14 9 9 8 9 6 6 6 5 5 2 Treads 26 | . 10 20 28 28 36 35 35 32 29 40 33 18 10 6 Leg 2 | . 12 7 . . . . . . . . . . . 8 Device 8 | . 14 11 . . 9 . 3 9 16 20 20 19 18 12 Storage 9 | . 14 14 14 14 9 9 9 9 6 6 6 6 6 6 Processor 2 | . . . . . . 8 9 2 . . . 1 6 2 Hackware 1 | . . . . . 8 6 . . . . . . . . Protection 6 | . . 2 14 13 9 11 14 . 2 6 4 3 . . Ballistic Gun 5 | . 10 3 . . . 7 12 4 11 7 12 8 . 3 Ballistic Cannon 5 | . 1 22 . 10 11 8 . . . 1 . 1 6 2 Launcher 1 | . . 2 . 10 . . 2 . . . . . . . Impact Weapon 1 | . 4 . 13 6 2 . . . . . . . . . Slashing Weapon 1 | . . . . . 4 2 2 5 . . . . . . Special Melee Weapon 1 | . . . 13 . . . . 6 1 . . . . . Naked Turns . | . . . . . . . . . . . . . . . Heaviest Build 101 | 13 32 35 51 59 59 71 70 57 65 77 67 73 77 101 Greatest Support 120 | 40 40 40 40 40 80 80 80 80 120 120 120 90 98 116 Greatest Overweight (x) 18 | . 1 1 1 1 . 3 1 . 1 . . 1 . 18 Average Overweight (x) . | . . . . 1 . . . . . . . . . . Largest Inventory Capacity 20 | 8 15 15 20 20 20 20 20 20 20 20 20 20 20 20 Average Capacity 18 | 7 11 15 18 20 20 20 20 20 20 20 20 20 20 20 Most Carried 20 | 1 15 15 20 20 20 20 20 20 20 20 20 20 20 20 Average Carried 17 | . 7 14 16 19 19 19 18 19 18 19 19 19 19 17 Final Capacity 20 | 8 15 15 20 20 20 20 20 20 20 20 20 20 20 20 Final Carried 20 | 1 15 15 20 20 20 20 18 19 17 20 20 20 20 20 Scrap Engine Consumption 6 | . . . . . . . . 4 2 . . . . . Class Distribution -------------------- 48% | Mutant 30% | Commander-Mutant 19% | Scavenger-Mutant Dominant Class ---------------- Mutant | -10/Materials Mutant | -10/Mines Mutant | -10/Exiles Mutant | -9/Mines Scavenger-Mutant | -8/Materials Commander-Mutant | -8/Storage Mutant | -8/Garrison Commander-Mutant | -8/Recycling Commander-Mutant | -6/Factory Commander-Mutant | -6/Waste Commander-Mutant | -6/Factory Mutant | -6/Lower Caves Scavenger-Mutant | -6/Lower Caves Scavenger-Mutant | -6/Zion Resources | -11 -10 -10 -10 -9 -8 -8 -8 -8 -6 -6 -6 -6 -6 -6 ----------- Run | Yrd Mat Min Exi Min Mat Sto Gar Rec Fac Was Fac Low Low Zio Matter Collected 6781 | 260 193 508 72 329 246 1457 952 433 98 311 633 94 309 886 Remotely . | . . . . . . . . . . . . . . . Salvage Created 7879 | 269 621 572 . 117 329 1184 827 853 34 1280 752 43 407 591 Parts 383 | 26 46 29 . 9 13 71 54 37 4 3 35 . 14 42 Haulers Intercepted 8 | . 1 . . . 1 6 . . . . . . . . Recyclers Shooed 5 | . . 1 . . . 4 . . . . . . . . Parts Field Recycled . | . . . . . . . . . . . . . . . Retrieved Matter . | . . . . . . . . . . . . . . . Parts Self-Destructed 9 | . . . . . . . . . . . . 1 5 3 Prevented . | . . . . . . . . . . . . . . . Kills | -11 -10 -10 -10 -9 -8 -8 -8 -8 -6 -6 -6 -6 -6 -6 ------- Run | Yrd Mat Min Exi Min Mat Sto Gar Rec Fac Was Fac Low Low Zio Combat Hostiles Destroyed 137 | . 15 10 . 22 3 26 27 6 2 5 9 1 6 5 Melee 8 | . 4 . . . . . . 4 . . . . . . Guns 34 | . 6 . . . . 7 12 2 . 1 6 . . . Cannons 32 | . . 5 . 4 2 13 . . . 1 . . 3 4 AOE 59 | . 5 5 . 18 1 6 15 . 2 1 3 . 3 . Classes Destroyed 22 | 2 7 1 . 1 . 5 1 1 . 1 . 1 1 1 Worker 11 | . 1 2 . 1 . 5 . . . . 2 . . . Builder 6 | . 3 . . . 1 . . . . . 2 . . . Tunneler 8 | 8 . . . . . . . . . . . . . . Hauler 8 | . 1 . . . 1 6 . . . . . . . . Recycler 17 | 1 1 5 . . 2 2 . 4 . . 2 . . . Mechanic 2 | . 1 . . . . 1 . . . . . . . . Operator 3 | . 1 . . . . 2 . . . . . . . . Watcher 1 | . . . . . . 1 . . . . . . . . Swarmer 33 | . 6 6 . 3 . 4 7 . 2 . 2 . 3 . Grunt 42 | . 9 2 . 1 2 8 11 1 . . 6 . 2 . Brawler 1 | . . . . . . . . 1 . . . . . . Duelist 7 | . . . . . . 3 3 . . . . . 1 . Protector 1 | . . . . . . 1 . . . . . . . . Sentry 16 | . . 2 . . 1 8 3 2 . . . . . . Demolisher 3 | . . . . . . 1 . 1 . . 1 . . . Hunter 2 | . . . . . . 1 . . . . 1 . . . Programmer 4 | . . . . . . . 3 1 . . . . . . Behemoth 1 | . . . . . . . . . . . . 1 . . Compactor 5 | . . . . . . . . . . 5 . . . . Zionite 27 | . . . . . . . . . . . . . . 27 Samaritan 5 | . . . . . . . . . . . . . 5 . Assembled 18 | . . . . 18 . . . . . . . . . . Butcher 1 | . . . . . . . . . . . . . . 1 Marauder 2 | . . . . . . . . . . . . . . 2 Best Kill Streak 16 | 3 6 4 . 16 4 7 4 5 2 3 3 1 3 8 Combat Bots Only 16 | . 3 3 . 16 3 7 4 2 2 3 2 1 3 2 Max Kills in Single Turn 6 | 2 6 3 . 4 1 4 3 1 2 1 2 1 1 2 Gunslinging . | . . . . . . . . . . . . . . . Exploded 4 | . 3 3 . 4 1 4 3 . 2 1 1 . 1 . Melee 1 | . 1 . . . . . . 1 . . . . . . Uniques/NPCs Destroyed 2 | . . . . . . . . . . . . . . 2 NK-0LA (-6/Zion) Imprinter (-6/Zion) Combat | -11 -10 -10 -10 -9 -8 -8 -8 -8 -6 -6 -6 -6 -6 -6 -------- Run | Yrd Mat Min Exi Min Mat Sto Gar Rec Fac Was Fac Low Low Zio Hostile Shots Fired 831 | . 63 28 . 43 15 143 129 19 3 . 73 23 20 272 Missed 235 | . 20 9 . 12 3 34 21 2 1 . 16 6 7 104 Damage Taken 10731 | . 654 219 . 518 253 1990 1877 343 14 . 741 475 291 3356 Core 1330 | . 72 7 . 18 19 190 112 60 . . 39 59 52 702 Absorbed by Shields 290 | . . . . . . . . . 15 . 178 48 . 49 Reduced by Siege Mode 39 | . . . . . . . . . . . . . . 39 Redirected to Shielding 106 | . . . . . . . 104 2 . . . . . . Ignored by Resistances 147 | . . . . . . . . . . . 140 7 . . Regen/Repaired (Parts) 115 | . . . . . . 63 . 14 13 . . 25 . . Core Remaining (%) 63 | 100 . . . 61 . . . 30 . . . . . . Volleys Fired 539 | 16 47 26 . 27 15 133 66 17 1 15 48 4 37 87 Largest 2 | 2 2 2 . 2 2 2 2 2 1 2 2 1 2 2 Hottest 143 | 90 90 70 . 70 70 70 58 48 33 132 58 100 143 143 Shots Fired 944 | 32 94 46 . 34 25 235 116 35 1 27 93 4 46 156 Gun 529 | 32 94 2 . . . 104 97 35 . 9 89 . . 67 Cannon 356 | . . 41 . 19 24 127 . . . 18 . 4 40 83 Launcher 59 | . . 3 . 15 1 4 19 . 1 . 4 . 6 6 Special . | . . . . . . . . . . . . . . . Kinetic 730 | . 56 43 . 19 24 231 97 35 . 23 89 . 10 103 Thermal 126 | 16 25 . . . . . . . . 4 . 4 30 47 Explosive 59 | . . 3 . 15 1 4 19 . 1 . 4 . 6 6 Electromagnetic 29 | 16 13 . . . . . . . . . . . . . Robot Hit Streak 25 | 5 5 11 . 10 6 13 20 25 . 10 12 2 10 17 Robot Miss Streak 5 | 2 3 4 . 2 3 5 2 2 . 1 4 1 2 3 Penetration Max 1 | . . . . . . . . . . . 1 . . . Secondary Targets 4 | . 1 . . . . 1 2 . . . . . . . Max Gunslinging Chain 1 | . 1 . . . . 1 1 . . . . . . . Shots Hit Robots 685 | 17 58 28 4 19 20 155 76 90 1 22 61 3 31 100 Core Hits 366 | 10 32 20 . 40 11 104 53 13 3 6 28 . 13 33 Critical Kills 14 | . 3 . . . . 1 . 1 . 2 1 1 2 3 Critical Parts Destroyed 2 | . . . . . . . . . . . 2 . . . Critical Strikes 30 | . 5 . . . 3 4 . 3 . 2 4 1 2 6 Burn 1 | . 1 . . . . . . . . . . . . . Meltdown 8 | . . . . . . . . . . 2 . 1 2 3 Destroy 8 | . 1 . . . . 1 . 1 . . 4 . . 1 Blast 8 | . . . . . 3 3 . . . . . . . 2 Corrupt 1 | . 1 . . . . . . . . . . . . . Smash 2 | . 2 . . . . . . . . . . . . . Sever 2 | . . . . . . . . 2 . . . . . . Melee Attacks 122 | . 10 . 4 3 8 9 15 67 1 . 4 . . 1 Impact 14 | . 10 . . 3 1 . . . . . . . . . Slashing 63 | . . . . . 7 9 15 28 . . 4 . . . Piercing . | . . . . . . . . . . . . . . . Sneak Attacks 56 | . 2 . 4 . 2 2 . 44 . . 2 . . . Combat Hostiles 24 | . . . . . . . . 24 . . . . . . Follow-up Attacks . | . . . . . . . . . . . . . . . Damage Inflicted 20628 | 234 1389 732 . 1454 609 3464 2354 1780 116 1271 1747 581 1180 3717 Guns 5615 | 234 586 20 . . . 1237 1182 346 . 98 1179 . . 733 Cannons 7258 | . . 413 . 226 369 1385 . . . 981 . 420 963 2501 Explosions 5636 | . 513 299 . 1228 121 716 1172 . 116 192 418 161 217 483 Melee 2119 | . 290 . . . 119 126 . 1434 . . 150 . . . Ramming . | . . . . . . . . . . . . . . . Kinetic 9377 | . 305 433 . 226 369 2622 1182 346 . 622 1179 . 227 1866 Thermal 4269 | 61 666 . . . . . . . . 649 . 581 736 1576 Explosive 4562 | . . 299 . 1228 121 716 1172 . 116 . 418 . 217 275 Electromagnetic 301 | 173 128 . . . . . . . . . . . . . Impact 337 | . 290 . . . 47 . . . . . . . . . Slashing 1782 | . . . . . 72 126 . 1434 . . 150 . . . Piercing . | . . . . . . . . . . . . . . . Highest Corruption 40 | . 1 1 1 1 . 2 6 15 . 22 33 40 40 40 Average Corruption 9 | . 1 1 1 1 . 2 4 11 . 14 28 36 40 16 Corruption Purged . | . . . . . . . . . . . . . . . Corruption Blocked . | . . . . . . . . . . . . . . . Effects 339 | . 10 9 7 13 . 26 48 58 . 15 48 27 45 33 Message Errors 85 | . 1 1 3 4 . 8 21 10 . 1 11 13 7 5 Matter Fused 82 | . 1 3 2 6 . 8 9 17 . 4 10 4 13 5 Heat Flow Errors 32 | . 2 1 1 . . 3 1 4 . 4 6 3 6 1 Energy Discharges 43 | . 1 1 1 3 . 1 2 14 . 1 5 3 7 4 Parts Rejected 4 | . . . . . . . 1 1 . . 2 . . . Parts Fused 5 | . . . . . . . 1 1 . . 2 . . 1 Data Loss (minor) 41 | . 3 2 . . . 4 7 4 . 2 5 3 5 6 Data Loss (major) 11 | . . 1 . . . . 1 2 . 1 1 1 1 3 Misfires 17 | . 2 . . . . 1 4 2 . 1 2 . 2 3 Alerts 3 | . . . . . . . . 2 . 1 . . . . Misdirections 1 | . . . . . . . . . . . 1 . . . Weapon Failures 15 | . . . . . . 1 1 1 . . 3 . 4 5 Overload Shots . | . . . . . . . . . . . . . . . Overflow Damage 982 | . 9 . . 67 45 54 13 241 . . 80 80 168 225 Projectiles 426 | . . . . . 1 1 . . . . . 69 168 187 Explosions 131 | . . . . 67 2 . 13 . . . . 11 . 38 Melee 425 | . 9 . . . 42 53 . 241 . . 80 . . . Knockbacks 33 | . 3 4 . . 6 5 . . . . . . 4 11 Impact 3 | . 3 . . . . . . . . . . . . . Kinetic 29 | . . 4 . . 5 5 . . . . . . 4 11 Secondary 1 | . . . . . 1 . . . . . . . . . Self-Inflicted Damage 574 | . 103 . . 101 7 41 181 . . . . 52 60 29 Shots 16 | . 2 . . 3 1 1 5 . . . . 1 2 1 Rammed . | . . . . . . . . . . . . . . . Targets Rammed . | . . . . . . . . . . . . . . . Kicked . | . . . . . . . . . . . . . . . Crushed . | . . . . . . . . . . . . . . . Highest Temperature 293 | 120 293 122 274 72 48 200 214 164 . 208 261 262 229 179 Average Temperature 54 | 47 81 31 143 28 12 38 41 67 . 90 97 122 107 45 Received Heat Transfer 2095 | . 129 81 . 58 81 477 729 54 . . 246 33 63 144 Siege Activations 1 | . . . . . . . . . . . . . . 1 Total Turns 18 | . . . . . . . . . . . . . . 18 Longest Duration 18 | . . . . . . . . . . . . . . 18 Robots Corrupted . | . . . . . . . . . . . . . . . Combat Hostiles . | . . . . . . . . . . . . . . . Parts Fried 1 | . 1 . . . . . . . . . . . . . Impact Corruptions 2 | . 2 . . . . . . . . . . . . . Robots Melted 10 | . . . . . . . . . . 2 . 1 2 5 Combat Hostiles 4 | . . . . . . . . . . 2 . 1 . 1 Parts Melted 14 | . 2 . . . . . 2 . . 3 . . 4 3 Heat Transferred 4959 | 185 918 . . . . . . . . 560 . 400 1150 1746 Parts Sabotaged . | . . . . . . . . . . . . . . . Parts Stolen . | . . . . . . . . . . . . . . . Parts Stripped . | . . . . . . . . . . . . . . . Power Chain Reactions 1 | . 1 . . . . . . . . . . . . . Alert | -11 -10 -10 -10 -9 -8 -8 -8 -8 -6 -6 -6 -6 -6 -6 ------- Run | Yrd Mat Min Exi Min Mat Sto Gar Rec Fac Was Fac Low Low Zio Peak Influence 1270 | 45 353 218 . 74 129 480 1270 681 653 212 434 . . . Initial 571 | . 29 72 . . . . 286 571 481 180 8 . . . Average 317 | 17 193 89 . 27 36 239 861 528 557 206 290 . . . Maximum Alert Level 4 | . 1 1 . . . 2 4 2 2 1 2 . . . Low Security (%) 43 | 100 62 87 . 100 100 40 . . . 15 23 . . . Level 1 22 | . 37 12 . . . 37 9 8 . 84 58 . . . Level 2 23 | . . . . . . 22 19 91 100 . 18 . . . Level 3 6 | . . . . . . . 45 . . . . . . . Level 4 3 | . . . . . . . 26 . . . . . . . Level 5 . | . . . . . . . . . . . . . . . High Security . | . . . . . . . . . . . . . . . Max Security . | . . . . . . . . . . . . . . . Squads Dispatched 25 | . 7 . . 1 3 5 . . 1 . 8 . . . Investigation 9 | . 5 . . 1 . 2 . . . . 1 . . . Extermination . | . . . . . . . . . . . . . . . Reinforcement 11 | . 2 . . . 3 1 . . 1 . 4 . . . Assault 2 | . . . . . . 2 . . . . . . . . Garrison 3 | . . . . . . . . . . . 3 . . . Intercept . | . . . . . . . . . . . . . . . Searches Triggered 1 | . . . . . . . . . 1 . . . . . Construction Impeded 4 | . . . . . 2 . . . . . 2 . . . Haulers Reinforced . | . . . . . . . . . . . . . . . Active Scanning Responses . | . . . . . . . . . . . . . . . Cargo Convoy Interrupts . | . . . . . . . . . . . . . . . Stealth | -11 -10 -10 -10 -9 -8 -8 -8 -8 -6 -6 -6 -6 -6 -6 --------- Run | Yrd Mat Min Exi Min Mat Sto Gar Rec Fac Was Fac Low Low Zio Distress Signals 6 | . 2 . . . 1 1 . . . . 2 . . . Communications Jammed . | . . . . . . . . . . . . . . . Distress Signals . | . . . . . . . . . . . . . . . Times Spotted 224 | . 29 10 . 20 7 40 23 8 4 6 23 1 7 46 Peak Tracking Total 13 | . 5 3 . 9 4 13 4 2 4 3 4 1 3 4 Tactical Retreats 19 | . 1 . . . . 1 . . . . 2 . 1 14 Traps | -11 -10 -10 -10 -9 -8 -8 -8 -8 -6 -6 -6 -6 -6 -6 ------- Run | Yrd Mat Min Exi Min Mat Sto Gar Rec Fac Was Fac Low Low Zio Traps Triggered 12 | . 1 . . . 1 1 3 . 2 . 2 2 . . Indirectly . | . . . . . . . . . . . . . . . Trap Hack Attempts 1 | . . . . . . . . . 1 . . . . . Triggered . | . . . . . . . . . . . . . . . Disarmed . | . . . . . . . . . . . . . . . Reprogrammed . | . . . . . . . . . . . . . . . Reused . | . . . . . . . . . . . . . . . Traps Extracted . | . . . . . . . . . . . . . . . Installed 1 | . . . . . . . . . . . . 1 . . Triggered 1 | . . . . . . . . . . . . 1 . . Most Traps Carried 1 | . . 1 1 1 1 1 1 1 1 1 1 1 . . Machines | -11 -10 -10 -10 -9 -8 -8 -8 -8 -6 -6 -6 -6 -6 -6 ---------- Run | Yrd Mat Min Exi Min Mat Sto Gar Rec Fac Was Fac Low Low Zio Machines Disabled 23 | . 4 1 . . . 5 3 . . . 9 . . 1 Max in Single Turn 4 | . 4 1 . . . 1 1 . . . 2 . . 1 Garrison Access 1 | . . . . . . . . . . . 1 . . . Garrison Relay 3 | . . . . . . . 3 . . . . . . . Machines Repaired . | . . . . . . . . . . . . . . . Machines Dismantled . | . . . . . . . . . . . . . . . Machines Sabotaged . | . . . . . . . . . . . . . . . Overloaded Fab Kills . | . . . . . . . . . . . . . . . Hacking | -11 -10 -10 -10 -9 -8 -8 -8 -8 -6 -6 -6 -6 -6 -6 --------- Run | Yrd Mat Min Exi Min Mat Sto Gar Rec Fac Was Fac Low Low Zio Machines Accessed 41 | . 9 . 3 1 2 11 2 8 3 . 2 . . . Terminals 20 | . 6 . . . 1 7 2 3 . . 1 . . . Fabricators 3 | . . . . . . . . . 3 . . . . . Repair Stations 3 | . 1 . . . 1 1 . . . . . . . . Recycling Units 9 | . 2 . . . . 2 . 5 . . . . . . Scanalyzers . | . . . . . . . . . . . . . . . Garrison Access 2 | . . . . . . 1 . . . . 1 . . . Total Hacks 125 | . 31 . 6 1 6 35 5 32 6 . 3 . . . Successful 53 | . 11 . 6 1 2 16 . 13 3 . 1 . . . Failed 71 | . 20 . . . 4 18 5 19 3 . 2 . . . Catastrophic 13 | . 4 . . . . 1 2 4 . . 2 . . . Database Lockouts 1 | . . . . . . 1 . . . . . . . . Manual 42 | . 18 . 1 . . 10 . 11 1 . . . . 1 Terminals 71 | . 22 . . . 3 26 5 13 . . 2 . . . Fabricators 6 | . . . . . . . . . 6 . . . . . Repair Stations 8 | . 3 . . . 3 2 . . . . . . . . Recycling Units 31 | . 6 . . . . 6 . 19 . . . . . . Scanalyzers . | . . . . . . . . . . . . . . . Garrison Access 2 | . . . . . . 1 . . . . 1 . . . Terminal Hacks 22 | . 4 . 6 1 1 9 . 1 . . . . . . Record 5 | . . . 5 . . . . . . . . . . . Part Schematic 2 | . 1 . . . . 1 . . . . . . . . Robot Analysis 3 | . 2 . . . 1 . . . . . . . . . Prototype ID Bank 1 | . . . . . . 1 . . . . . . . . Open Door 2 | . . . . 1 . 1 . . . . . . . . Machine Index 1 | . . . . . . 1 . . . . . . . . Locate Traps 3 | . 1 . . . . 2 . . . . . . . . Hauler Manifests 2 | . . . . . . 2 . . . . . . . . Zone Layout 2 | . . . . . . 1 . 1 . . . . . . Derelict Proto ID Bank 1 | . . . 1 . . . . . . . . . . . Fabricator Hacks 3 | . . . . . . . . . 3 . . . . . Network Status 1 | . . . . . . . . . 1 . . . . . Build 2 | . . . . . . . . . 2 . . . . . Repair Station Hacks 4 | . 1 . . . 1 2 . . . . . . . . Scan Component 3 | . 1 . . . 1 1 . . . . . . . . Repair 1 | . . . . . . 1 . . . . . . . . Recycling Unit Hacks 8 | . 3 . . . . 1 . 4 . . . . . . Retrieve Components 8 | . 3 . . . . 1 . 4 . . . . . . Scanalyzer . | . . . . . . . . . . . . . . . Garrison Access Hacks 2 | . . . . . . 1 . . . . 1 . . . Unlock Access 1 | . . . . . . 1 . . . . . . . . Seal Access 1 | . . . . . . . . . . . 1 . . . Unauthorized Hacks 14 | . 3 . . . . 3 . 8 . . . . . . Terminals 5 | . 1 . . . . 1 . 3 . . . . . . Botnet 5 | . 1 . . . . 1 . 3 . . . . . . Fabricators . | . . . . . . . . . . . . . . . Repair Stations . | . . . . . . . . . . . . . . . Recycling Units 9 | . 2 . . . . 2 . 5 . . . . . . Mask 1 | . . . . . . 1 . . . . . . . . Tunnel 8 | . 2 . . . . 1 . 5 . . . . . . Scanalyzers . | . . . . . . . . . . . . . . . Garrison Access . | . . . . . . . . . . . . . . . Data Cores Recovered 1 | . . . . . . 1 . . . . . . . . Used . | . . . . . . . . . . . . . . . Hacking Detections 29 | . 9 . . . 2 6 2 6 3 . 1 . . . Full Trace Events 11 | . 5 . . . . 2 2 1 . . 1 . . . Feedback Events 1 | . . . . . . . 1 . . . . . . . Corruption 1 | . . . . . . . 1 . . . . . . . Feedback Blocked . | . . . . . . . . . . . . . . . Robot Schematics Acquired . | . . . . . . . . . . . . . . . Robots Built . | . . . . . . . . . . . . . . . Authchips . | . . . . . . . . . . . . . . . Time . | . . . . . . . . . . . . . . . Total Robot Build Rating . | . . . . . . . . . . . . . . . Part Schematics Acquired 2 | . 1 . . . . 1 . . . . . . . . Parts Built 2 | . . . . . . . . . 2 . . . . . Authchips . | . . . . . . . . . . . . . . . Time 95 | . . . . . . . . . 95 . . . . . Total Part Build Rating 16 | . . . . . . . . . 16 . . . . . Parts Repaired 1 | . . . . . . 1 . . . . . . . . Time 32 | . . . . . . 32 . . . . . . . . Parts Recycled . | . . . . . . . . . . . . . . . Recycled Matter . | . . . . . . . . . . . . . . . Retrieved Matter . | . . . . . . . . . . . . . . . Retrieved Components 36 | . 16 . . . . . . 20 . . . . . . Parts Scanalyzed . | . . . . . . . . . . . . . . . Part Schematics Acquired . | . . . . . . . . . . . . . . . Parts Damaged . | . . . . . . . . . . . . . . . Bothacking | -11 -10 -10 -10 -9 -8 -8 -8 -8 -6 -6 -6 -6 -6 -6 ------------ Run | Yrd Mat Min Exi Min Mat Sto Gar Rec Fac Was Fac Low Low Zio Used RIF Installer 2 | . . . . . . . 2 . . . . . . . Command Fork 1 | . . . . . . . 1 . . . . . . . Robots Hacked 7 | . . . 4 . . . . 2 1 . . . . . Non-combat 6 | . . . 3 . . . . 2 1 . . . . . Combat 1 | . . . 1 . . . . . . . . . . . Robot Hacks Applied 7 | . . . 4 . . . . 2 1 . . . . . parse_system 4 | . . . 4 . . . . . . . . . . . find_chute 1 | . . . . . . . . . 1 . . . . . ignore_repairs 1 | . . . . . . . . 1 . . . . . . find_recycling 1 | . . . . . . . . 1 . . . . . . Relay Couplers Released 12 | . . . . . . . 12 . . . . . . . Machine Destruction 12 | . . . . . . . 12 . . . . . . . Fabnet Peak Effective % . | . . . . . . . . . . . . . . . Robots Rewired 19 | . . . . . . . . 19 . . . . . . Allies Hacked 2 | . . . . . . . . 2 . . . . . . Hacks Repelled . | . . . . . . . . . . . . . . . Allies | -11 -10 -10 -10 -9 -8 -8 -8 -8 -6 -6 -6 -6 -6 -6 -------- Run | Yrd Mat Min Exi Min Mat Sto Gar Rec Fac Was Fac Low Low Zio Total Allies 36 | . . . . 3 . 12 . 19 . 2 . . . . Largest Group 14 | . . . . 3 . 12 . 14 14 14 11 . . . Highest-Rated Group 235 | . . . . 40 . 235 . 222 222 222 175 . . . Highest-Rated Ally 34 | . . . . 16 . 31 . 34 34 34 34 . . . Total Orders 26 | . . . . 1 . 3 . 5 . 6 11 . . . STAY 13 | . . . . 1 . 2 . 1 . 3 6 . . . FOLLOW 11 | . . . . . . 1 . 2 . 3 5 . . . TUNNEL 2 | . . . . . . . . 2 . . . . . . Ally Attacks 147 | . . . . 1 . 5 . 19 5 52 65 . . . Total Damage 3696 | . . . . 12 . 62 . 296 145 1669 1512 . . . Kills 19 | . . . . . . 1 . 3 2 1 12 . . . Allies Corrupted 3 | . . . . . . . . . . 3 . . . . Allies Melted . | . . . . . . . . . . . . . . . Intel | -11 -10 -10 -10 -9 -8 -8 -8 -8 -6 -6 -6 -6 -6 -6 ------- Run | Yrd Mat Min Exi Min Mat Sto Gar Rec Fac Was Fac Low Low Zio Robot Analysis Total 3 | . 2 . . . 1 . . . . . . . . . Derelict Logs Recovered 6 | . . 1 . 2 . . . . . . . . 3 . Drone Launches . | . . . . . . . . . . . . . . . Drone Recoveries . | . . . . . . . . . . . . . . . Exploration | -11 -10 -10 -10 -9 -8 -8 -8 -8 -6 -6 -6 -6 -6 -6 ------------- Run | Yrd Mat Min Exi Min Mat Sto Gar Rec Fac Was Fac Low Low Zio Turns Passed 15500 | 238 1434 1121 1009 1321 628 2313 1629 1617 370 400 937 537 721 1225 Spaces Moved 6934 | 115 530 605 494 512 196 971 768 804 188 195 402 281 384 489 Core 11 | 4 . . . . . . . . . . . . . 7 Treads 6391 | 111 282 482 494 512 196 971 768 804 188 195 402 281 384 321 Legs 532 | . 248 123 . . . . . . . . . . . 161 Wheels . | . . . . . . . . . . . . . . . Hover . | . . . . . . . . . . . . . . . Flight . | . . . . . . . . . . . . . . . Fastest Speed 50 | 50 120 160 160 240 160 160 167 167 166 168 165 165 160 135 Average Speed 176 | 156 176 166 201 240 160 165 169 168 175 168 167 173 160 179 Slowest Speed 950 | 160 240 190 240 240 160 410 250 170 246 168 168 245 165 950 Overloaded Moves . | . . . . . . . . . . . . . . . Propulsion Burnouts . | . . . . . . . . . . . . . . . Robots Hopped . | . . . . . . . . . . . . . . . Cave-ins Triggered . | . . . . . . . . . . . . . . . Exploration Rate (%) 57 | 7 83 81 70 98 19 92 79 96 7 77 11 45 57 33 Regions Visited 14 Branch Regions 8 Pre-discovered Areas 11 | . 2 . 1 . . 2 . 5 . . . . 1 . Known Exits Taken 4 | . . . . . 1 1 . . . . . 1 1 . Unknown Exits Taken 7 | 1 1 1 1 1 . . . 1 . . 1 . . . Scrap Searched 7 | . . 1 . 3 . . . . . . . 1 2 . Spaces Dug 61 | . . . . 2 6 4 35 . . . 2 . 12 . Terrain Destroyed 568 | . 27 23 . 138 14 36 145 . 5 8 29 28 46 69 Melee 16 | . . . . 2 6 4 2 . . . 2 . . . Projectile 25 | . . . . . . . 1 . . 1 10 1 8 4 AOE 526 | . 27 23 . 136 8 32 142 . 5 7 16 27 38 65 Terrain Rammed . | . . . . . . . . . . . . . . . Walls Destroyed . | . . . . . . . . . . . . . . . Machines Disabled . | . . . . . . . . . . . . . . . Actions | -11 -10 -10 -10 -9 -8 -8 -8 -8 -6 -6 -6 -6 -6 -6 --------- Run | Yrd Mat Min Exi Min Mat Sto Gar Rec Fac Was Fac Low Low Zio Total 9109 | 138 933 674 509 565 472 1443 965 971 224 236 562 317 442 658 Wait 1091 | . 306 18 . 2 222 254 85 53 18 8 85 13 6 21 Move 6922 | 114 529 604 493 511 195 971 767 803 188 194 401 280 383 489 Hop . | . . . . . . . . . . . . . . . Pick Up 83 | 1 15 6 6 7 6 12 3 5 3 3 1 2 3 10 Fast Attach 67 | 7 7 1 . . . 11 6 5 4 2 7 4 3 10 Attach 50 | . 2 1 . 1 4 2 5 4 4 3 2 4 2 16 Detach 27 | . 6 . . . . . . 2 . 4 1 3 1 10 Swap 114 | . 5 10 3 8 13 23 17 7 3 4 9 2 3 7 Drop 90 | . 6 8 3 6 9 28 1 8 1 3 3 3 4 7 Fire 539 | 16 47 26 . 27 15 133 66 17 1 15 48 4 37 87 Melee 122 | . 10 . 4 3 8 9 15 67 1 . 4 . . 1 Ram . | . . . . . . . . . . . . . . . Kick . | . . . . . . . . . . . . . . . Crush . | . . . . . . . . . . . . . . . Escape Stasis 1 | . . . . . . . . . . . . 1 . . Rewire 1 | . . . . . . . . . . . 1 . . . Trap 2 | . . . . . . . . . 1 . . 1 . . Miscellaneous . | . . . . . . . . . . . . . . . Route ------- -11/Scrapyard -10/Materials (discovered 4 exits: [*Mat x2] / [*Min x2]) -10/Mines (discovered 3 exits: [*Mat x2] / *Exi) -10/Exiles -9/Mines (discovered 2 exits: *Mat x2) -8/Materials -8/Storage (discovered 3 exits: [Fac] / Rec / Gar) -8/Garrison (discovered 3 exits: *Rec x3) -8/Recycling -6/Factory -6/Waste -6/Factory -6/Lower Caves -6/Lower Caves -6/Zion (discovered 1 exit: [*Pro]) History --------- Turn | Location | Event 10 | -11/Scrapyard | Discovered new exit (range 16) 239 | -11/Scrapyard | Entered Materials 307 | -10/Materials | Build established: Mutant 458 | -10/Materials | Lost 3 parts (1p1n1w) 495 | -10/Materials | Discovered new exit (range 8) 936 | -10/Materials | Discovered new exit (range 12) 1321 | -10/Materials | Discovered new exit (range 8) 1617 | -10/Materials | Discovered new exit (range 15) 1673 | -10/Materials | Entered Mines 1696 | -10/Mines | Discovered new exit (range 6) 1783 | -10/Mines | Build established: Scavenger-Mutant 1819 | -10/Mines | Received a Rocket Launcher from a helpful Derelict 1853 | -10/Mines | Discovered new exit (range 14) 2082 | -10/Mines | Found a hidden stash of uninstalled traps 2251 | -10/Mines | Build established: Mutant 2305 | -10/Mines | Deemed a non-threat by the Exiles lab entrance 2305 | -10/Mines | Discovered new exit (range 5) 2794 | -10/Mines | Entered Exiles 2834 | -10/Exiles | Met 8R-AWN 2866 | -10/Exiles | Met EX-HEX 2909 | -10/Exiles | Met EX-BIN 2932 | -10/Exiles | Aligned with FarCom system 2933 | -10/Exiles | Given EX-Vault access code 2970 | -10/Exiles | Opened EX-Vault 2982 | -10/Exiles | Found YOLO Cannon 3044 | -10/Exiles | Warned to stay clear of 0b10 Research branches 3086 | -10/Exiles | Met EX-DEC 3127 | -10/Exiles | Learned location of Zion (-6) 3630 | -10/Exiles | Discovered new exit (range 14) 3803 | -10/Exiles | Left Exiles lab with YOLO Cannon 3803 | -10/Exiles | Entered Mines 3885 | -9/Mines | Discovered new exit (range 14) 3979 | -9/Mines | Assisted by bots powering up and referring to "LRC-V3" 4329 | -9/Mines | Met a Derelict shopkeep closing up shop 4482 | -9/Mines | Assembled infested the area 4487 | -9/Mines | Assisted by a Guerilla fighting off Assembled 4577 | -9/Mines | Destroyed 16 combat bots 4677 | -9/Mines | Discovered new exit (range 16) 4985 | -9/Mines | Learned Materials garrison access intel 5124 | -9/Mines | Entered Materials 5124 | -8/Materials | Evolved 4 slots: Propulsion x2, Utility x2 5125 | -8/Materials | Identified exit to Storage 5126 | -8/Materials | Loaded intel: 1 garrison access location 5610 | -8/Materials | Build established: Scavenger-Mutant 5752 | -8/Materials | Entered Storage 5753 | -8/Storage | Identified exit to Recycling 5829 | -8/Storage | Assisted by bots powering up and referring to "LRC-V3" 6119 | -8/Storage | Build established: Commander-Mutant 6309 | -8/Storage | Repaired Rocket Launcher 6341 | -8/Storage | Learned location of Armory (-4) 6514 | -8/Storage | Central database locked down 7445 | -8/Storage | Met a pair of Derelict thieves 7557 | -8/Storage | Destroyed 7 combat bots 7843 | -8/Storage | Discovered new exit (range 6) 8065 | -8/Storage | Identified exit to Garrison 8065 | -8/Storage | Entered Garrison 8173 | -8/Garrison | Garrison Relay disabled 8213 | -8/Garrison | Triggered checkpoint 8319 | -8/Garrison | Triggered checkpoint 8377 | -8/Garrison | Build established: Mutant 8437 | -8/Garrison | Installed Relay Interface Framework 8513 | -8/Garrison | Triggered checkpoint 8654 | -8/Garrison | Discovered exit to Recycling (range 10) 8765 | -8/Garrison | Triggered checkpoint 8830 | -8/Garrison | Discovered exit to Recycling (range 15) 8878 | -8/Garrison | Core integrity fell below 50% 8931 | -8/Garrison | Triggered checkpoint 9082 | -8/Garrison | Garrison Relay disabled 9162 | -8/Garrison | Expanded RIF knowledge: Command Fork 9285 | -8/Garrison | Triggered checkpoint 9293 | -8/Garrison | Triggered checkpoint 9329 | -8/Garrison | Discovered exit to Recycling (range 12) 9423 | -8/Garrison | Lost 5 parts (1p1n2u1w) 9445 | -8/Garrison | Triggered checkpoint 9694 | -8/Garrison | Entered Recycling 9747 | -8/Recycling | Found Scrap Engine 10296 | -8/Recycling | P-60 Hacker assimilated allied Rogue 3a 10300 | -8/Recycling | System corruption reached 10% 10340 | -8/Recycling | Lost 4 allies 10663 | -8/Recycling | Discovered new exit (range 16) 10799 | -8/Recycling | Build established: Commander-Mutant 11311 | -8/Recycling | Entered Factory 11311 | -6/Factory | Accompanied by 14 allies 11311 | -6/Factory | Evolved 4 slots: Propulsion x2, Utility x2 11352 | -6/Factory | Discovered new exit (range 15) 11551 | -6/Factory | Fabricated Linear Accelerator (x2) 11661 | -6/Factory | Search patrols dispatched 11681 | -6/Factory | Sucked down chute 11681 | -6/Factory | Entered Waste 11681 | -6/Waste | Met up with 2 allies sucked down the chute earlier 11696 | -6/Waste | EMP discharged 11712 | -6/Waste | Spotted C-40 Crusher 11720 | -6/Waste | Destroyed C-40 Crusher 11728 | -6/Waste | Spotted C-40 Crusher 11740 | -6/Waste | Spotted C-40 Crusher 11742 | -6/Waste | Allies destroyed C-40 Crusher 11744 | -6/Waste | Destroyed C-40 Crusher 11744 | -6/Waste | Spotted C-40 Crusher 11751 | -6/Waste | Spotted C-40 Crusher 11752 | -6/Waste | Destroyed C-40 Crusher 11756 | -6/Waste | Destroyed C-40 Crusher 11774 | -6/Waste | Spotted C-40 Crusher 11785 | -6/Waste | Destroyed C-40 Crusher 11796 | -6/Waste | EMP discharged 11796 | -6/Waste | System corruption reached 10% 11896 | -6/Waste | EMP discharged 11923 | -6/Waste | Discovered new exit (range 15) 11971 | -6/Waste | 12 allies followed down the chute 11996 | -6/Waste | EMP discharged 12029 | -6/Waste | Lost 3 allies 12081 | -6/Waste | Entered Factory 12081 | -6/Factory | Accompanied by 11 allies 12289 | -6/Factory | Garrison activated, responded to threat 12463 | -6/Factory | System corruption reached 30% 12631 | -6/Factory | Lost 3 allies 12982 | -6/Factory | Discovered new exit (range 14) 13018 | -6/Factory | Entered Lower Caves 13128 | -6/Lower Caves | Encountered a Warlord checkpoint 13213 | -6/Lower Caves | Build established: Scavenger-Mutant 13270 | -6/Lower Caves | Spotted B-75 Beast 13315 | -6/Lower Caves | Destroyed B-75 Beast 13336 | -6/Lower Caves | Lost 4 parts (1p2n1u) 13543 | -6/Lower Caves | Discovered new exit (range 3) 13553 | -6/Lower Caves | Identified exit to Lower Caves 13555 | -6/Lower Caves | Entered another Lower Caves area 13593 | -6/Lower Caves | Build established: Mutant 14095 | -6/Lower Caves | Build established: Scavenger-Mutant 14257 | -6/Lower Caves | Discovered new exit (range 9) 14275 | -6/Lower Caves | Identified exit to Zion 14276 | -6/Lower Caves | Entered Zion 14347 | -6/Zion | System corruption cleaned by Quarantine Array 14374 | -6/Zion | Discovered new exit (range 16) 14446 | -6/Zion | Received a hallucinogenic algorithm 14550 | -6/Zion | Found CR-A16's Pointy Stick 14722 | -6/Zion | RIF detected upon attempting to enter Zion 14722 | -6/Zion | Attacked by Zionites 14722 | -6/Zion | Spotted SJ-SUX(B) 14722 | -6/Zion | Spotted 2O-EK0(B) 14730 | -6/Zion | Destroyed SJ-SUX(B) 14737 | -6/Zion | Destroyed 2O-EK0(B) 14818 | -6/Zion | NK-0LA came to Zion's defense 14861 | -6/Zion | Core integrity fell below 50% 14908 | -6/Zion | Lost 7 parts (1p1n3u2w) 15138 | -6/Zion | Build established: Mutant 15182 | -6/Zion | Destroyed NK-0LA 15274 | -6/Zion | Core integrity fell below 20% 15369 | -6/Zion | Found Prototype Device 15369 | -6/Zion | Identified Bomb Factory No. 2 15410 | -6/Zion | Destroyed Imprinter 15428 | -6/Zion | Extracted access codes from Imprinter's data core 15501 | -6/Zion | Destroyed by L7-WDK(z) with Makeshift Shrapnel Gun Last Messages --------------- 15455_ Acquired 35 matter. IF-JLW(z) bursts out of the Twisted Machinery. 15461_ IF-JLW(z) pulls a Unknown Piercing Weapon out of the Twisted Machinery. 15462_ Critical hit (Impale). 15467_ Slug penetrates IF-JLW(z). 15467_ IF-JLW(z) destroyed. 15470_ Acquired 12 matter. 15474_ System corrupted: FCS attempts to trigger Gauss Rifle. 15474_ System corrupted: Gauss Rifle misfires. 15474_ Slug penetrates Twisted Machinery. 15491_ System corrupted: Heat flow error (+206). 15491_ Acquired 26 matter. 15493_ Acquired Mak. Sensor Array. 15499_ 1B-20I(z) pulls a Mak. Shrapnel Gun out of the Twisted Machinery. 15500_ Slug penetrates Twisted Machinery. 15500_ Q5-8LV(z) pulls a Mak. Laser out of the Twisted Machinery. Map ----- +----------------------------------------------------+ | ?????????????????????????????????????????????????? | | ?????????????????????????????????????????????????? | | ?????????????????????????????????????????????????? | | ?????????????????????????????????????????????????? | | ?????????????????????????????????????????????????? | | ?????????????????????????????????????????????????? | | ?????????????????????????????????????????????????? | | ?????????????????????????????????????????????????? | | ?????????????????????????????????????????????????? | | ?????????????????????????????????????????????????? | | ????????????????????????????????????#######??????? | | ???????????????????????????????????## #??????? | | ???????????????????????????????????#"" ""##??????? | | ???????????????????????????????????#"" #???????? | | ???????????????????????????????????#"* "#???????? | | ???????????????????????????????????###! ###??????? | | ?????????????????????????????###???# # # #####??? | | ??????????????????????????#?##"##??# "#"##?? | | ??????????????????""##?##?"##"""##?# " """##? | | ????????????????? """"#""##""""""###"## """# | | ?????????????????"""""""""""" """" "" """" | | ???????????????? """" """" """"%[* "" | | ???????????????? """ """ " "* = "" | | ?????????????????"# c """" | | ?????????????????""""= "#""" | | ??????????????????#""%* @ * ""##"" | | ????????????????"""" " = = [ """"""" | | ????????????????"""" """"" " "" | | ??????????????? "###" " "" | | ????????????? z """""?###" """ | | ????????????? """"" """""##### """"" | | ???????????? ???""""" """"""#" "" " """""" | | ????????????????""""" """"""""" """" "" "" | | ????????????????? | | ?????????????????? | | ?????????????????? ? * " """" | | ?????????????????#"zz "? """"" !""""""" | | ??????????????????"""???? """"""" * """""" | | ?????????????????????????? ""??""""""" = #"##""" | | ????????????????????????????????"###"" / """""" | | ???????????????????????????????????#"" """ | | ???????????????????????????????????## | | ???????????????????????????????????#" | | ??????????????????????????????????##" | | ??????????????????????????????????#" | | ??????????????????????????????????#" | | ??????????????????????????????????##" "" | | ???????????????????????????????????## "" | | ???????????????????????????????????#""" " | | ???????????????????????????????????##" | +----------------------------------------------------+ Best States ------------- Heat Dissipation 83 Energy Generation 19 Energy Capacity 315 Matter Stores 300 Matter Capacity 300 Sight Range 16 Terrain Scan Density 10 ECM Strength 2 Armor Coverage 1200 Resistance: TH 20 Core Shielding 20 Propulsion Shielding 66 Evasion (%) 55 Armor Integrity Analysis 30 Recoil Reduction 6 Offensive Hacking 11 Defensive Hacking 10 Item Schematics ----------------- Cargo Storage Unit | -10/Materials | Hacked Lrn. Tractor Beam | -8/Storage | Hacked Robot Schematics ------------------ None Fabricated ------------ Linear Accelerator | x2 | -6/Factory | Preloaded Alien Tech Used ----------------- None Achievements -------------- None Challenges ------------ None Game ------ Seed LinearImpactRedirector Manual? 0 Play Time 01:55:56 Cumulative 135.1 hours Start 2024.06.04 @ 09:33:47 End 2024.06.04 @ 16:55:03 Sessions 6 Manual Loads 0 Difficulty Rogue Special Mode None Game No. 63 Rogue 63 Adventurer 0 Explorer 0 Win Type - Total 2 Types 1/0/1/0/0/0/0/0/0 Lore% 62 Gallery% 74 Achievement% 56 Wizard Run 0 Options --------- Layout 1 ASCII 0 Keyboard 0 Movement Mouse Keybinds 0 Fullscreen 2 Font 18/SmallcapsGlow Map View 50x40 Zoom Use 0% Tactical HUD 1 Map Filters NONE Filters NONE Steam 1 RUN: 96e7c816-5ec5-4235-8f65-d2c962ded188